bitfinex/quotes_ETHUSD_20250403
["timestamp","ask_amount","ask_price","bid_price","bid_amount"]
[1743648265423,13.79654307,1823.2,1823.1,0.1]
[1743648265823,18.18442307,1823.2,1823.1,0.1]
[1743648266833,13.79654307,1823.2,1823.1,0.1]
[1743648268550,6.82654307,1823.2,1823.1,0.1]
[1743648268859,6.00894307,1823.2,1823.1,0.1]
[1743648269758,6.00894307,1823.2,1823.1,4.48813]
[1743648270058,6.00894307,1823.2,1823.1,0.1]
[1743648270461,10.99771738,1823.2,1823.1,0.1]
[1743648270629,11.77731738,1823.2,1823.1,0.1]
[1743648277279,14.77731738,1823.2,1823.1,0.1]
[1743648279584,18.74731738,1823.2,1823.1,0.1]
[1743648282960,21.74731738,1823.2,1823.1,0.1]
[1743648285596,14.35943738,1823.2,1823.1,0.1]
[1743648285782,6.00894307,1823.2,1823.1,5.27703]
[1743648285981,6.00894307,1823.2,1823.1,0.8889]
[1743648286476,6.00894307,1823.2,1823.1,0.1]
[1743648288190,19.89829834,1823.2,1823.1,0.1]
[1743648288780,22.89829834,1823.2,1823.1,0.1]
[1743648298697,22.69851834,1823.2,1822.5,0.758]
[1743648298873,4.38842,1823.0,1822.7,0.758]
[1743648299073,4.38885,1822.8,1822.3,2.15731058]
[1743648299297,4.38921,1822.7,1822.4,0.758]
[1743648299474,5.90894307,1822.8,1822.5,0.7613]
[1743648299675,5.90894307,1822.8,1822.7,5.15039]
[1743648300212,7.3881,1823.2,1823.0,5.14966]
[1743648300213,5.90894307,1823.2,1823.0,5.14966]
[1743648300426,5.90894307,1823.2,1823.1,4.38813]
[1743648300581,5.90894307,1823.2,1823.1,5.16413]
[1743648300781,5.90894307,1823.2,1823.1,0.776]
[1743648301184,5.90894307,1823.2,1822.9,0.8122]
[1743648301523,5.90894307,1823.2,1823.0,4.38821]
[1743648302016,5.90894307,1823.2,1822.9,5.2007]
[1743648302199,5.90894307,1823.2,1822.9,0.8122]
[1743648303093,5.90894307,1823.2,1822.9,5.20079]
[1743648303289,5.90894307,1823.2,1823.1,5.17353]
[1743648303481,5.90894307,1823.2,1822.9,0.7659]
[1743648303684,10.29684307,1823.2,1822.9,0.7659]
[1743648303882,4.3883,1823.1,1822.7,0.7659]
[1743648304816,5.90894307,1823.0,1822.7,0.7659]
[1743648305516,5.90894307,1823.0,1822.7,5.15497]
[1743648306420,5.90894307,1823.0,1822.7,0.7659]
[1743648307520,7.73196738,1823.0,1822.5,0.7505]
[1743648307723,4.38904,1822.8,1822.3,5.14055]
[1743648308085,5.90894307,1822.7,1822.3,5.14055]
[1743648308289,5.90894307,1822.7,1822.4,4.38975]
[1743648314411,4.38943,1822.6,1822.1,4.49036]
[1743648314610,0.438943,1822.5,1822.2,4.3902]
[1743648315893,0.438943,1822.5,1822.3,4.39005]
[1743648316720,5.90894307,1822.6,1822.3,4.39005]
[1743648317223,5.90894307,1822.6,1822.2,4.3902]
[1743648317520,5.90894307,1822.6,1822.2,8.7804]
[1743648318328,5.90894307,1822.6,1822.2,0.05487499]
[1743648318515,5.90894307,1822.6,1822.5,5.19267]
[1743648318691,5.90894307,1822.6,1822.5,0.8031]
[1743648319214,5.90894307,1822.6,1822.5,5.19267]
[1743648322033,5.90894307,1822.6,1822.4,4.38974]
[1743648322216,6.49983738,1822.6,1822.3,5.15091]
[1743648322530,6.49983738,1822.6,1822.2,4.39017]
[1743648323302,6.49983738,1822.6,1822.2,8.78036]
[1743648323503,6.49983738,1822.6,1822.3,4.38986]
[1743648324311,6.49983738,1822.6,1822.4,4.3898]
[1743648324919,5.90894307,1822.6,1822.4,4.3898]
[1743648325126,5.90894307,1822.6,1822.5,4.38957]
[1743648325538,5.90894307,1822.6,1822.4,9.58641]
[1743648326039,5.90894307,1822.9,1822.5,4.38957]
[1743648326237,5.90894307,1822.9,1822.8,5.13925]
[1743648326937,5.90894307,1823.3,1823.1,4.38794]
[1743648327108,5.90894307,1823.3,1823.2,5.21908]
[1743648328238,6.71574307,1823.7,1823.3,4.38747]
[1743648328535,5.90894307,1823.7,1823.5,4.38704]
[1743648328744,5.90894307,1823.7,1823.6,4.38692]
[1743648329424,5.90894307,1823.7,1823.6,5.14592]
[1743648331440,5.90894307,1823.7,1823.6,5.35159314]
[1743648331640,6.49983738,1823.7,1823.6,0.20567314]
[1743648331839,6.49983738,1823.7,1823.3,10.57733]
[1743648332047,7.29533738,1823.7,1823.6,0.19340942]
[1743648332212,7.29533738,1823.7,1823.3,10.57733]
[1743648332415,11.68211738,1823.7,1823.6,0.19391899]
[1743648332619,4.38714,1823.6,1823.1,4.388]
[1743648332951,4.38714,1823.6,1823.2,4.38788]
[1743648332952,5.55535174,1823.6,1823.2,4.38788]
[1743648333442,1.16821174,1823.6,1823.2,4.38788]
[1743648333843,1.16821174,1823.6,1823.1,4.44284525]
[1743648333844,5.55521174,1823.6,1823.1,8.77601]
[1743648334155,4.38775,1823.3,1822.8,4.38883]
[1743648334447,5.90894307,1823.2,1822.8,4.38883]
[1743648335316,10.29684307,1823.2,1822.8,4.38883]
[1743648335516,5.90894307,1823.2,1822.8,4.38883]
[1743648336448,5.90894307,1823.2,1822.9,4.3886]
[1743648336951,5.90894307,1823.2,1823.0,4.38836]
[1743648338548,5.90894307,1823.2,1823.1,4.38813]
[1743648339242,5.90894307,1823.2,1822.9,9.76258]
[1743648339750,5.90894307,1823.2,1823.0,4.38836]
[1743648340050,5.90894307,1823.2,1823.1,4.38813]
[1743648343420,5.90894307,1823.6,1823.3,4.38744]
[1743648343835,5.90894307,1823.6,1823.4,0.17613157]
[1743648349341,5.90894307,1823.6,1823.5,4.38716]
[1743648349539,5.90894307,1824.0,1823.6,4.38673]
[1743648349722,5.90894307,1824.0,1823.7,0.1724708]
[1743648349927,5.90894307,1824.0,1823.6,4.38673]
[1743648350358,5.90894307,1824.0,1823.7,0.1724708]
[1743648350539,0.59089431,1823.9,1823.5,4.38714]
[1743648350741,4.97719431,1823.9,1823.6,0.17293751]
[1743648350944,11.09936307,1823.8,1823.3,9.7606]
[1743648351141,11.09936307,1823.8,1823.4,0.1775398]
[1743648352049,4.38671,1823.7,1823.4,0.1775398]
[1743648352247,5.93531731,1823.7,1823.4,0.1775398]
[1743648353058,1.54860731,1823.7,1823.4,0.1775398]
[1743648354137,5.90894307,1823.6,1823.4,0.1775398]
[1743648354341,0.7566,1823.5,1823.1,4.38799]
[1743648354553,5.14376,1823.5,1823.2,0.1800048]
[1743648354737,6.68774431,1823.5,1823.2,0.1800048]
[1743648357341,2.30058431,1823.5,1823.2,0.1800048]
[1743648359130,0.7566,1823.5,1823.2,0.1800048]
[1743648359334,5.90894307,1823.4,1823.2,4.38768]
[1743648359532,5.90894307,1823.4,1823.3,4.56768715]
[1743648361765,5.90894307,1823.4,1823.3,5.38158715]
[1743648362471,7.6883,1823.7,1823.4,4.3872]
[1743648362636,7.6883,1823.7,1823.5,4.38709]
[1743648362840,7.6883,1823.7,1823.5,4.56430426]
[1743648363775,7.67142935,1823.7,1823.5,4.56430426]
[1743648364641,0.8183,1823.7,1823.5,4.56430426]
[1743648365974,5.90894307,1823.8,1823.6,4.38692]
[1743648366172,5.90894307,1823.8,1823.7,0.1763068]
[1743648366348,5.90894307,1823.8,1823.7,4.38668]
[1743648366542,5.90894307,1823.8,1823.7,4.5629868]
[1743648371769,5.90894307,1824.1,1824.0,4.38596]
[1743648371986,5.90894307,1824.1,1824.0,4.55684868]
[1743648376202,5.90894307,1824.1,1824.0,4.97755812]
[1743648377102,7.65562935,1824.5,1824.2,4.38532]
[1743648377403,0.8125,1824.5,1824.3,4.55366056]
[1743648379099,5.90894307,1824.6,1824.5,4.38476]
[1743648379408,5.90894307,1824.6,1824.5,4.54985751]
[1743648381808,12.85207242,1824.9,1824.7,8.76846]
[1743648381986,6.00894307,1824.9,1824.8,4.38404]
[1743648382184,6.00894307,1824.9,1824.8,4.54702593]
[1743648385880,0.1,1824.9,1824.8,4.54702593]
[1743648386380,0.9025,1824.9,1824.8,0.16298593]
[1743648386708,0.9025,1824.9,1824.8,4.38404]
[1743648386909,0.1,1824.9,1824.8,4.54702593]
[1743648388505,0.1,1824.9,1824.8,7.54702593]
[1743648389379,0.1,1824.9,1824.8,8.30832593]
[1743648390014,0.1,1824.9,1824.8,8.36311153]
[1743648392681,0.1,1824.9,1824.8,8.30832593]
[1743648393385,0.1,1824.9,1824.8,8.36311151]
[1743648395537,0.1,1824.9,1824.8,8.30832593]
[1743648395722,0.1,1824.9,1824.8,13.67232593]
[1743648397318,0.1,1824.9,1824.8,7.54702593]
[1743648397891,0.1,1824.9,1824.8,0.16298593]
[1743648398210,0.8819,1824.9,1824.8,0.16298593]
[1743648401111,5.2657,1824.9,1824.8,0.16298593]
[1743648401318,0.7819,1824.8,1824.5,4.38467]
[1743648403503,0.771,1824.6,1824.2,4.3853]
[1743648403703,0.771,1824.6,1824.1,9.74961]
[1743648403916,0.771,1824.6,1824.5,4.38476]
[1743648404115,5.90894307,1824.7,1824.6,4.38452]
[1743648404306,5.90894307,1824.7,1824.6,4.53660504]
[1743648407052,5.90894307,1824.7,1824.6,0.15208504]
[1743648407434,5.90894307,1824.7,1824.6,4.53660504]
[1743648407764,5.90894307,1824.7,1824.6,5.18312231]
[1743648407930,0.1,1824.9,1824.8,4.38404]
[1743648408335,0.1,1824.9,1824.8,4.53541521]
[1743648409059,0.1,1824.9,1824.8,4.59020976]
[1743648411228,0.1,1824.9,1824.8,4.53541521]
[1743648411627,0.1,1824.9,1824.8,4.59020975]
[1743648412564,0.1,1824.9,1824.8,8.35140975]
[1743648414247,0.1,1824.9,1824.8,8.29661521]
[1743648414754,0.1,1824.9,1824.8,8.35140058]
[1743648417061,0.1,1824.9,1824.8,12.89741521]
[1743648417834,0.1,1824.9,1824.8,13.70121521]
[1743648420066,0.08547831,1824.9,1824.8,13.70121521]
[1743648420371,8.31e-06,1824.9,1824.8,13.70121521]
[1743648420596,5.90894307,1825.5,1825.4,4.3826]
[1743648420865,5.90894307,1825.5,1825.4,4.52983123]
[1743648421052,13.52097242,1825.8,1825.5,4.38236]
[1743648421260,13.52097242,1825.8,1825.6,4.38198]
[1743648421453,13.52097242,1825.8,1825.7,0.1456226]
[1743648421647,13.52097242,1825.8,1825.7,4.38188]
[1743648421864,13.52097242,1825.8,1825.7,4.52785886]
[1743648422269,0.1,1825.9,1825.8,4.38164]
[1743648422468,0.1,1825.9,1825.8,4.52577922]
[1743648422845,0.1,1825.9,1825.8,0.14413922]
[1743648423251,0.1,1825.9,1825.8,4.52577922]
[1743648425287,0.1,1825.9,1825.8,4.580542]
[1743648425456,0.1,1825.9,1825.8,4.52577922]
[1743648427584,0.1,1825.9,1825.8,4.58053631]
[1743648428152,0.1,1825.9,1825.8,4.52577922]
[1743648430685,0.1,1825.9,1825.8,4.58053903]
[1743648430891,0.1,1825.9,1825.8,4.52577922]
[1743648432190,0.1,1825.9,1825.8,4.58054217]
[1743648433263,0.1,1825.9,1825.8,4.52577922]
[1743648433463,0.1,1825.9,1825.8,5.35543669]
[1743648434069,0.1,1825.9,1825.8,5.30067922]
[1743648434377,0.1,1825.9,1825.8,5.35543538]
[1743648435263,6.74074307,1826.4,1826.3,4.38044]
[1743648435700,0.8318,1826.6,1826.4,4.3802]
[1743648435878,6.74074307,1826.8,1826.7,4.37948]
[1743648436067,6.74074307,1826.8,1826.7,4.50667317]
[1743648437900,0.1,1826.9,1826.8,4.37924]
[1743648438117,0.1,1826.9,1826.8,4.56435996]
[1743648438674,0.1,1826.9,1826.8,4.50962603]
[1743648439094,0.1,1826.9,1826.8,4.56435969]
[1743648439314,0.1,1826.9,1826.8,4.50962603]
[1743648439809,0.1,1826.9,1826.8,4.56435888]
[1743648439989,0.1,1826.9,1826.8,5.37415888]
[1743648440520,0.1,1826.9,1826.8,5.37415463]
[1743648440727,0.1,1826.9,1826.8,5.31942603]
[1743648440881,0.1,1826.9,1826.8,4.50962603]
[1743648441081,0.1,1826.9,1826.8,5.1561433]
[1743648441314,0.1,1826.9,1826.8,4.56435463]
[1743648442517,0.1,1826.9,1826.8,4.50962603]
[1743648443410,0.1,1826.9,1826.8,8.32324913]
[1743648443804,0.1,1826.9,1826.8,8.32324936]
[1743648444016,0.1,1826.9,1826.8,8.32325012]
[1743648444997,0.1,1826.9,1826.8,8.26852603]
[1743648445593,0.55,1827.3,1827.2,7.37828]
[1743648445804,0.55,1827.3,1827.2,12.78799638]
[1743648446022,0.55,1827.3,1827.2,12.85250227]
[1743648446243,1.3082,1827.3,1827.2,0.53547622]
[1743648446454,1.3082,1827.3,1827.2,0.11922227]
[1743648446951,11.60908307,1827.3,1827.2,0.11922227]
[1743648447094,0.7721,1827.2,1826.8,4.37921]
[1743648447299,0.7721,1827.2,1826.9,0.11118362]
[1743648447539,0.7721,1827.2,1826.8,8.75832]
[1743648447824,0.7721,1827.2,1827.0,4.37862]
[1743648448031,0.7721,1827.2,1826.9,8.86926669]
[1743648448198,0.7721,1827.2,1827.1,0.11138937]
[1743648448526,6.63204738,1827.2,1827.1,0.11138937]
[1743648448833,6.63204738,1827.2,1826.7,4.37946]
[1743648448834,0.7517,1827.0,1826.7,4.37946]
[1743648449626,4.37937,1826.8,1826.3,4.38022]
[1743648449826,6.67974307,1826.7,1826.3,4.38022]
[1743648450030,0.7708,1826.6,1826.2,4.38065]
[1743648450199,0.7708,1826.6,1826.3,4.38042]
[1743648451131,4.37972,1826.6,1826.2,4.38065]
[1743648451452,0.7896,1826.5,1826.1,9.78966635]
[1743648451749,0.7896,1826.5,1826.2,4.38062]
[1743648451947,0.7896,1826.5,1826.1,14.11572]
[1743648452293,0.7896,1826.5,1826.1,9.73481]
[1743648452611,5.16969,1826.5,1826.0,4.38115]
[1743648452816,0.7896,1826.5,1826.1,4.38091]
[1743648452998,0.7896,1826.5,1826.2,4.38047]
[1743648455217,5.1864,1826.4,1826.0,4.38115]
[1743648455534,5.1864,1826.4,1825.6,5.17766]
[1743648455535,4.38095,1826.1,1825.7,4.38187]
[1743648455722,0.8025,1826.0,1825.7,4.38187]
[1743648455902,0.8025,1826.0,1825.7,8.76374]
[1743648456101,0.8025,1826.0,1825.7,4.38187]
[1743648457099,0.8025,1825.7,1825.3,8.76535]
[1743648457298,0.8025,1825.7,1825.2,5.354]
[1743648457299,10.29093307,1825.7,1825.2,4.38306]
[1743648457498,10.29093307,1825.7,1825.1,9.83711]
[1743648457499,5.18462,1825.6,1825.1,9.83711]
[1743648457718,0.8134,1825.4,1825.2,4.38294]
[1743648457912,0.8134,1825.4,1825.3,4.38284]
[1743648458319,0.8134,1825.4,1825.2,4.38294]
[1743648458518,0.8134,1825.4,1825.1,9.83713]
[1743648458716,0.7876,1825.3,1825.1,0.1]
[1743648459303,5.17045,1825.3,1825.1,0.1]
[1743648459732,10.29179307,1825.3,1825.1,0.1]
[1743648459903,0.8138,1825.2,1825.1,0.1]
[1743648460103,6.72274307,1825.2,1825.1,0.1]
[1743648461432,6.72274307,1825.2,1825.1,4.48332]
[1743648462016,6.72274307,1825.2,1825.1,0.1]
[1743648463030,7.39501738,1825.2,1825.1,0.1]
[1743648463412,11.77809738,1825.2,1825.1,0.1]
[1743648463728,11.77809738,1825.2,1825.1,0.22643955]
[1743648463901,7.39501738,1825.2,1825.1,0.22643955]
[1743648464633,6.72274307,1825.2,1825.1,0.22643955]
[1743648466909,6.72274307,1825.2,1825.1,4.60975955]
[1743648467411,5.90894307,1825.2,1825.1,4.60975955]
[1743648467604,0.7665,1825.4,1825.1,4.60975955]
[1743648467839,0.7665,1825.4,1825.2,8.766]
[1743648468043,0.7665,1825.4,1825.1,0.22643955]
[1743648468207,0.7665,1825.4,1825.3,0.12553024]
[1743648468406,0.7665,1825.4,1825.2,0.1259965]
[1743648468836,0.7665,1825.4,1825.1,0.1]
[1743648469037,0.7665,1825.4,1825.3,0.12553024]
[1743648469038,5.14912,1825.4,1825.3,0.12553024]
[1743648469233,6.102281,1825.4,1825.2,0.1259965]
[1743648469415,6.102281,1825.4,1825.3,0.12553024]
[1743648469611,6.67544307,1825.4,1825.3,0.12553024]
[1743648469808,6.67544307,1825.4,1825.1,0.1]
[1743648470014,6.67544307,1825.4,1825.2,4.38287]
[1743648470213,6.67544307,1825.4,1825.2,4.50850291]
[1743648470518,11.05809307,1825.4,1825.2,0.12563291]
[1743648470743,11.05809307,1825.4,1825.1,0.1]
[1743648470917,11.05809307,1825.4,1825.2,0.1257056]
[1743648471262,11.05809307,1825.4,1825.1,0.1]
[1743648471465,6.67544307,1825.4,1825.1,0.1]
[1743648471665,7.78122538,1825.4,1825.2,0.1257056]
[1743648471815,6.67544307,1825.4,1825.2,0.1257056]
[1743648472007,6.67544307,1825.4,1825.1,8.86629]
[1743648472212,6.67544307,1825.4,1825.2,0.12550202]
[1743648472563,6.67544307,1825.4,1825.1,0.1]
[1743648472760,6.67544307,1825.4,1825.2,4.50870739]
[1743648472960,5.90894307,1825.4,1825.2,4.50870739]
[1743648473613,5.90894307,1825.4,1825.2,0.12580739]
[1743648474034,0.7527,1825.3,1825.1,4.48311]
[1743648474439,5.90894307,1825.4,1825.2,4.38298]
[1743648474650,5.90894307,1825.4,1825.2,4.38291]
[1743648474865,5.90894307,1825.4,1825.3,4.38284]
[1743648475931,5.90894307,1825.4,1825.2,8.76589]
[1743648476131,5.90894307,1825.4,1825.3,4.38284]
[1743648478771,5.90894307,1825.4,1825.3,4.50834095]
[1743648479539,5.90894307,1825.4,1825.3,0.12550095]
[1743648479761,6.57783738,1825.4,1825.3,4.50834095]
[1743648480071,5.90894307,1825.4,1825.3,4.50834095]
[1743648482467,5.90894307,1825.4,1825.3,0.12550095]
[1743648482860,5.90894307,1825.4,1825.3,4.50834095]
[1743648485144,5.90894307,1825.4,1825.3,0.12550095]
[1743648485476,6.67304307,1825.4,1825.3,0.12550095]
[1743648486376,7.34034738,1825.4,1825.3,0.12550095]
[1743648486540,7.34034738,1825.4,1825.1,8.86638]
[1743648486737,7.34034738,1825.4,1825.2,0.12484755]
[1743648486936,7.34034738,1825.4,1825.2,4.38307]
[1743648487173,5.90894307,1825.4,1825.3,0.12438129]
[1743648487372,5.90894307,1825.4,1825.3,4.50722129]
[1743648490076,6.84312935,1825.7,1825.6,4.38212]
[1743648490286,6.68134307,1825.8,1825.6,4.38212]
[1743648490453,6.68134307,1825.8,1825.6,4.50505047]
[1743648490645,5.90894307,1825.8,1825.7,4.38188]
[1743648491057,5.90894307,1825.8,1825.7,0.12358383]
[1743648491582,5.90894307,1825.8,1825.7,0.12246442]
[1743648491774,5.90894307,1825.8,1825.6,4.38212]
[1743648491980,0.7518,1825.7,1825.6,4.38212]
[1743648492175,5.90894307,1825.8,1825.6,4.38212]
[1743648492382,6.66074307,1825.8,1825.6,4.38212]
[1743648492574,6.66074307,1825.8,1825.5,4.38234]
[1743648492802,11.04251307,1825.8,1825.4,4.38259]
[1743648493008,5.13369,1825.7,1825.3,9.73876]
[1743648493196,0.8317,1825.5,1825.1,4.48309]
[1743648493371,0.8317,1825.5,1825.1,8.86631]
[1743648493572,0.8317,1825.5,1825.1,4.48309]
[1743648493804,0.8317,1825.5,1825.2,0.12424562]
[1743648494007,1.353099,1825.5,1825.1,4.48309]
[1743648494218,0.8317,1825.5,1825.2,4.50714562]
[1743648494892,0.7548,1825.7,1825.3,4.38263]
[1743648495082,0.7548,1825.7,1825.4,4.38254]
[1743648495275,0.7548,1825.7,1825.4,4.50585316]
[1743648495479,0.7548,1825.7,1825.4,0.12331316]
[1743648495678,6.77689831,1825.7,1825.4,0.12331316]
[1743648496397,2.39493831,1825.7,1825.4,4.50588316]
[1743648496987,2.39493831,1825.7,1825.4,0.12331316]
[1743648497190,6.77682831,1825.7,1825.4,0.12331316]
[1743648497394,12.68577138,1825.7,1825.4,0.12331316]
[1743648497582,1.26857714,1825.6,1825.4,0.12331316]
[1743648499498,0.8138,1825.5,1825.4,0.12331316]
[1743648499717,0.8138,1825.5,1825.4,4.50591316]
[1743648500510,6.72994307,1825.7,1825.5,4.38215]
[1743648500658,5.90894307,1825.7,1825.6,4.38212]
[1743648500988,5.90894307,1825.7,1825.6,0.12333759]
[1743648501702,7.31153738,1825.7,1825.6,0.12333759]
[1743648501860,5.90894307,1825.7,1825.6,4.38212]
[1743648502058,5.90894307,1825.7,1825.6,4.50519586]
[1743648504771,5.90894307,1825.7,1825.6,0.12307586]
[1743648505393,5.90894307,1825.7,1825.6,4.50519586]
[1743648510228,5.90894307,1825.7,1825.6,0.12307586]
[1743648512892,5.90894307,1825.7,1825.6,4.50519586]
[1743648515029,11.06462307,1825.7,1825.6,0.12307586]
[1743648515314,11.06462307,1825.7,1825.3,4.38274]
[1743648515493,11.06462307,1825.7,1825.6,0.12263086]
[1743648515694,0.8248,1825.6,1825.2,4.38288]
[1743648515902,5.20701,1825.6,1825.2,4.38288]
[1743648516291,5.20701,1825.6,1825.1,4.48329]
[1743648516630,10.29130307,1825.5,1825.1,4.48329]
[1743648517728,5.90894307,1825.5,1825.1,8.8664]
[1743648517934,5.90894307,1825.5,1825.2,4.38304]
[1743648518427,5.90894307,1825.5,1825.3,4.38281]
[1743648518633,5.90894307,1825.5,1825.3,8.76554]
[1743648518928,5.90894307,1825.5,1825.3,8.76546]
[1743648519094,5.90894307,1825.5,1825.4,4.3826]
[1743648519298,5.90894307,1825.5,1825.3,4.38273]
[1743648520105,5.90894307,1825.5,1825.4,4.3826]
[1743648522612,5.90894307,1825.5,1825.4,5.188]
[1743648523919,5.90894307,1825.5,1825.4,5.3121913]
[1743648528043,5.90894307,1825.9,1825.8,4.38164]
[1743648528451,5.90894307,1825.9,1825.8,4.50077047]
[1743648529418,5.90894307,1826.4,1826.2,4.38068]
[1743648529775,5.90894307,1826.4,1826.3,4.49510721]
[1743648530459,5.90894307,1826.4,1826.3,0.11466721]
[1743648532557,6.57953738,1826.4,1826.3,0.11466721]
[1743648532731,7.35163738,1826.4,1826.3,0.11466721]
[1743648532931,7.35163738,1826.4,1826.0,4.38102]
[1743648533137,7.35163738,1826.4,1826.0,8.76207]
[1743648533343,7.35163738,1826.4,1826.1,0.1122953]
[1743648534249,0.73516374,1826.3,1826.1,0.1122953]
[1743648534448,7.35163738,1826.4,1826.1,0.1122953]
[1743648534853,7.35163738,1826.4,1826.1,4.4930853]
[1743648535058,6.68104307,1826.4,1826.1,4.4930853]
[1743648535266,6.68104307,1826.4,1826.2,4.38066]
[1743648535468,6.68104307,1826.4,1826.2,4.38067]
[1743648535678,6.68104307,1826.4,1826.3,0.10940225]
[1743648535979,5.90894307,1826.4,1826.2,4.38065]
[1743648536182,5.90894307,1826.4,1826.3,4.48984225]
[1743648539840,6.73424307,1826.4,1826.3,0.10940225]
[1743648540139,6.73424307,1826.4,1826.3,0.11107895]
[1743648540339,6.73424307,1826.4,1826.0,8.76196]
[1743648540539,11.11446307,1826.4,1826.1,0.11200994]
[1743648540793,0.7999,1826.3,1826.1,0.11200994]
[1743648540997,0.7999,1826.3,1825.9,4.38137]
[1743648541141,0.7999,1826.3,1826.0,4.49348551]
[1743648541341,6.70884307,1826.3,1826.0,4.49348551]
[1743648541858,6.70884307,1826.3,1826.0,0.11247551]
[1743648542062,7.97269881,1826.3,1826.0,0.11247551]
[1743648543090,0.8267,1826.2,1826.0,0.11247551]
[1743648543388,5.20738,1826.2,1825.7,8.76348]
[1743648543591,5.90894307,1826.1,1825.8,0.10313806]
[1743648543940,5.90894307,1826.1,1825.8,4.48473806]
[1743648544165,5.90894307,1826.1,1826.0,4.38116]
[1743648544473,5.90894307,1826.5,1826.4,4.3802]
[1743648545252,6.67794307,1826.9,1826.8,4.37924]
[1743648545444,5.90894307,1826.9,1826.8,4.37924]
[1743648548877,5.90894307,1826.9,1826.8,5.20864]
[1743648549951,6.71354307,1827.5,1827.2,4.37828]
[1743648550347,6.71354307,1827.5,1827.2,8.75656]
[1743648550553,6.71354307,1827.5,1827.2,4.37828]
[1743648551165,11.09116307,1827.5,1827.0,4.37853]
[1743648551373,0.8088,1827.3,1826.9,4.37897]
[1743648551696,5.18695,1827.3,1826.8,8.75818]
[1743648551896,5.90894307,1827.2,1826.8,8.75818]
[1743648552273,5.90894307,1827.2,1826.9,4.37889]
[1743648552484,5.90894307,1827.2,1826.8,4.37908]
[1743648552673,5.90894307,1827.2,1826.8,8.75822]
[1743648553259,7.01852638,1827.2,1826.8,4.37908]
[1743648553572,0.7689,1827.1,1826.8,4.37908]
[1743648553774,0.7689,1827.1,1826.7,4.37945]
[1743648554997,0.7689,1827.1,1826.6,5.18564]
[1743648554998,5.14744,1827.1,1826.6,5.18564]
[1743648555175,4.37876,1827.0,1826.6,4.37954]
[1743648555586,5.33138,1827.0,1826.6,4.37954]
[1743648555863,0.79,1826.9,1826.6,4.37954]
[1743648556087,6.69894307,1826.9,1826.6,4.37954]
[1743648556496,11.07796307,1826.9,1826.4,8.76011]
[1743648556674,11.07796307,1826.9,1826.5,4.3799]
[1743648556869,12.62363538,1826.9,1826.5,4.3799]
[1743648557792,12.62363538,1826.9,1826.4,4.38004]
[1743648557996,0.7938,1826.5,1826.0,4.38096]
[1743648558201,11.08281307,1826.5,1826.0,8.76201]
[1743648558416,11.08281307,1826.5,1826.1,4.38088]
[1743648559098,6.70274307,1826.5,1826.2,4.38056]
[1743648559412,6.70274307,1826.5,1826.3,4.38022]
[1743648560320,5.90894307,1826.5,1826.3,8.76055]
[1743648561277,5.90894307,1826.5,1826.4,4.3802]
[1743648572021,5.90894307,1826.5,1826.2,4.38064]
[1743648572913,5.90894307,1826.5,1826.2,8.76122]
[1743648573421,5.90894307,1826.5,1826.2,4.38058]
[1743648573589,5.90894307,1826.5,1826.3,4.38044]
[1743648573795,5.90894307,1826.5,1826.4,4.3802]
[1743648574918,5.90894307,1826.5,1826.3,4.38044]
[1743648575137,5.90894307,1826.5,1826.3,4.38025]
[1743648575514,5.90894307,1826.8,1826.7,4.37948]
[1743648576033,5.90894307,1826.8,1826.7,5.19618]
[1743648576398,0.7892,1827.3,1827.1,4.37852]
[1743648576599,5.90894307,1827.5,1827.1,8.75704]
[1743648576819,0.8266,1827.4,1827.1,8.75704]
[1743648577833,0.8266,1827.4,1827.3,4.37804]
[1743648578050,5.90894307,1827.5,1827.3,4.37804]
[1743648578338,5.90894307,1827.5,1827.2,4.37817]
[1743648579943,0.7847,1827.4,1827.0,8.75724]
[1743648580250,0.7847,1827.4,1827.0,4.37859]
[1743648580460,0.7847,1827.4,1827.1,4.37833]
[1743648581975,0.7847,1827.4,1827.1,8.81138589]
[1743648582160,0.7847,1827.4,1827.1,8.75666]
[1743648582333,0.7847,1827.4,1827.2,8.75638]
[1743648582663,0.7847,1827.4,1827.2,4.3781]
[1743648584363,0.7847,1827.4,1826.8,5.21242]
[1743648584532,0.8006,1827.1,1826.8,4.37912]
[1743648584728,6.70954307,1827.1,1826.8,4.37912]
[1743648585664,6.70954307,1827.1,1826.9,4.37899]
[1743648586065,5.90894307,1827.1,1827.0,4.37876]
[1743648591560,5.90894307,1827.1,1827.0,5.15146]
[1743648592748,5.90894307,1827.1,1827.0,5.20618781]
[1743648593156,5.90894307,1827.1,1827.0,5.15146]
[1743648593570,5.90894307,1827.1,1827.0,5.20618782]
[1743648594068,5.90894307,1827.5,1827.0,5.15146]
[1743648594382,5.90894307,1827.5,1827.1,0.05472398]
[1743648594534,5.90894307,1827.5,1827.0,5.15146]
[1743648594735,5.90894307,1827.5,1827.1,4.43324399]
[1743648595864,5.90894307,1827.5,1827.1,4.37852]
[1743648596165,10.28650307,1827.5,1827.0,0.82742401]
[1743648596372,10.28650307,1827.5,1827.0,0.7727]
[1743648596569,10.28650307,1827.5,1827.0,5.15141]
[1743648596862,5.14002,1827.4,1826.9,4.37879]
[1743648597966,0.7622,1827.4,1826.9,8.75768]
[1743648598637,0.7622,1827.4,1826.9,4.37879]
[1743648598832,0.8268,1827.3,1826.7,4.37927]
[1743648599090,0.8268,1827.1,1826.6,10.48561]
[1743648599597,0.8268,1827.1,1826.7,0.054738]
[1743648599753,0.8268,1827.1,1826.7,4.37946]
[1743648600263,0.8268,1827.1,1826.7,4.43419691]
[1743648600471,0.8268,1827.1,1826.7,4.43402691]
[1743648600672,0.8268,1827.1,1826.7,4.43402692]
[1743648601169,0.8268,1827.1,1826.7,4.37929]
[1743648601342,0.8268,1827.1,1826.7,4.43402692]
[1743648601939,0.8268,1827.1,1826.7,8.81340692]
[1743648602140,0.8268,1827.1,1826.7,4.37929]
[1743648602440,1.50037431,1827.1,1826.7,4.37929]
[1743648603638,1.50037431,1827.1,1826.7,4.434027]
[1743648603842,1.50037431,1827.1,1826.7,4.37929]